[Event "Titled Tuesday Blitz February 21 Early 2023"]
[White "Kamsky, Gata"]
[Black "Jeet, Jain"]
[WhiteFideId "2000024"]
[BlackFideId "5073022"]
[WhiteElo "2665"]
[BlackElo "2199"]
[Result "0-1"]
[Round "03"]
[TimeControl "180+2"]
[Date "2023.02.21"]
[WhiteClock "0:00:02"]
[BlackClock "0:00:16"]

1. e4 {[%clk 0:03:00]}  c6 {[%clk 0:02:58]} 2. d3 {[%clk 0:02:54]}  d5 {[%clk 0:02:57]} 3. Nf3 {[%clk 0:02:55]}  Bg4 {[%clk 0:02:52]} 4. Nbd2 {[%clk 0:02:46]}  e6 {[%clk 0:02:47]} 5. h3 {[%clk 0:02:44]}  Bxf3 {[%clk 0:02:46]} 6. Nxf3 {[%clk 0:02:40]}  Nd7 {[%clk 0:02:47]} 7. e5 {[%clk 0:02:28]}  c5 {[%clk 0:02:45]} 8. c3 {[%clk 0:02:27]}  Ne7 {[%clk 0:02:45]} 9. d4 {[%clk 0:02:21]}  Nc6 {[%clk 0:02:45]} 10. a3 {[%clk 0:02:17]}  a5 {[%clk 0:02:44]} 11. Bb5 {[%clk 0:02:12]}  Qb6 {[%clk 0:02:44]} 12. a4 {[%clk 0:02:10]}  Be7 {[%clk 0:02:43]} 13. O-O {[%clk 0:02:10]}  O-O {[%clk 0:02:43]} 14. Be3 {[%clk 0:02:03]}  Rfd8 {[%clk 0:02:42]} 15. h4 {[%clk 0:02:01]}  cxd4 {[%clk 0:02:39]} 16. cxd4 {[%clk 0:01:54]}  Nb4 {[%clk 0:02:29]} 17. Rc1 {[%clk 0:01:46]}  Nf8 {[%clk 0:02:28]} 18. h5 {[%clk 0:01:44]}  Rac8 {[%clk 0:02:28]} 19. Rc3 {[%clk 0:01:42]}  Rc7 {[%clk 0:02:23]} 20. Qb1 {[%clk 0:01:36]}  h6 {[%clk 0:02:20]} 21. Rfc1 {[%clk 0:01:35]}  Rdc8 {[%clk 0:02:20]} 22. g3 {[%clk 0:01:31]}  Na6 {[%clk 0:02:03]} 23. Kg2 {[%clk 0:01:29]}  Bb4 {[%clk 0:02:01]} 24. Rxc7 {[%clk 0:01:27]}  Rxc7 {[%clk 0:02:00]} 25. Ng1 {[%clk 0:01:21]}  Rxc1 {[%clk 0:01:47]} 26. Qxc1 {[%clk 0:01:20]}  Nc7 {[%clk 0:01:42]} 27. Bd3 {[%clk 0:01:18]}  Qc6 {[%clk 0:01:43]} 28. Qd1 {[%clk 0:01:14]}  b5 {[%clk 0:01:39]} 29. axb5 {[%clk 0:01:10]}  Nxb5 {[%clk 0:01:40]} 30. Nf3 {[%clk 0:01:08]}  Nc7 {[%clk 0:01:34]} 31. Qc2 {[%clk 0:01:06]}  Qxc2 {[%clk 0:01:33]} 32. Bxc2 {[%clk 0:01:07]}  Nd7 {[%clk 0:01:32]} 33. b3 {[%clk 0:01:03]}  Nb6 {[%clk 0:01:29]} 34. Bd3 {[%clk 0:01:04]}  a4 {[%clk 0:01:27]} 35. bxa4 {[%clk 0:01:03]}  Nxa4 {[%clk 0:01:28]} 36. g4 {[%clk 0:01:00]}  Nb6 {[%clk 0:01:18]} 37. Ng1 {[%clk 0:00:54]}  Nd7 {[%clk 0:01:16]} 38. Ne2 {[%clk 0:00:53]}  Bf8 {[%clk 0:01:10]} 39. f4 {[%clk 0:00:52]}  f6 {[%clk 0:00:43]} 40. Bg6 {[%clk 0:00:47]}  Be7 {[%clk 0:00:36]} 41. Kf3 {[%clk 0:00:45]}  Nb6 {[%clk 0:00:31]} 42. f5 {[%clk 0:00:41]}  Nc4 {[%clk 0:00:26]} 43. Bf4 {[%clk 0:00:41]}  Nb5 {[%clk 0:00:20]} 44. fxe6 {[%clk 0:00:34]}  fxe5 {[%clk 0:00:19]} 45. dxe5 {[%clk 0:00:33]}  Kf8 {[%clk 0:00:19]} 46. Bf5 {[%clk 0:00:27]}  Bd8 {[%clk 0:00:16]} 47. Bg3 {[%clk 0:00:13]}  Bg5 {[%clk 0:00:16]} 48. Be1 {[%clk 0:00:12]}  Be7 {[%clk 0:00:15]} 49. Nf4 {[%clk 0:00:12]}  Ke8 {[%clk 0:00:14]} 50. Nxd5 {[%clk 0:00:12]}  Nxe5+ {[%clk 0:00:13]} 51. Ke4 {[%clk 0:00:12]}  Nc6 {[%clk 0:00:13]} 52. Bg6+ {[%clk 0:00:12]}  Kf8 {[%clk 0:00:11]} 53. Nc3 {[%clk 0:00:11]}  Nd6+ {[%clk 0:00:11]} 54. Kd5 {[%clk 0:00:10]}  Nb4+ {[%clk 0:00:12]} 55. Ke5 {[%clk 0:00:09]}  Nc6+ {[%clk 0:00:12]} 56. Kf4 {[%clk 0:00:09]}  Nd4 {[%clk 0:00:12]} 57. Bf5 {[%clk 0:00:08]}  Bf6 {[%clk 0:00:11]} 58. Nd5 {[%clk 0:00:07]}  Nc6 {[%clk 0:00:10]} 59. Bd2 {[%clk 0:00:07]}  Bg5+ {[%clk 0:00:10]} 60. Kf3 {[%clk 0:00:07]}  Bxd2 {[%clk 0:00:11]} 61. Nb6 {[%clk 0:00:05]}  Nd4+ {[%clk 0:00:11]} 62. Kf2 {[%clk 0:00:04]}  N4xf5 {[%clk 0:00:11]} 63. gxf5 {[%clk 0:00:05]}  Nxf5 {[%clk 0:00:12]} 64. Nd5 {[%clk 0:00:05]}  Bg5 {[%clk 0:00:12]} 65. Kg2 {[%clk 0:00:04]}  Nd4 {[%clk 0:00:12]} 66. e7+ {[%clk 0:00:04]}  Bxe7 {[%clk 0:00:12]} 67. Kg3 {[%clk 0:00:04]}  Bg5 {[%clk 0:00:12]} 68. Kg4 {[%clk 0:00:05]}  Ne6 {[%clk 0:00:12]} 69. Nc3 {[%clk 0:00:04]}  Kf7 {[%clk 0:00:13]} 70. Ne4 {[%clk 0:00:05]}  Be7 {[%clk 0:00:12]} 71. Kf5 {[%clk 0:00:05]}  Nf8 {[%clk 0:00:13]} 72. Nf2 {[%clk 0:00:04]}  Nh7 {[%clk 0:00:13]} 73. Nd3 {[%clk 0:00:02]}  Bd6 {[%clk 0:00:13]} 74. Kg4 {[%clk 0:00:02]}  Nf6+ {[%clk 0:00:14]} 75. Kh4 {[%clk 0:00:02]}  Bc7 {[%clk 0:00:14]} 76. Nc5 {[%clk 0:00:02]}  Bd6 {[%clk 0:00:14]} 77. Nd3 {[%clk 0:00:02]}  Ke6 {[%clk 0:00:14]} 78. Nf2 {[%clk 0:00:02]}  Kf5 {[%clk 0:00:14]} 79. Nd3 {[%clk 0:00:02]}  Bf4 {[%clk 0:00:14]} 80. Nc5 {[%clk 0:00:02]}  Bg5+ {[%clk 0:00:15]} 81. Kh3 {[%clk 0:00:02]}  Nxh5 {[%clk 0:00:16]} 0-1


[Site "https://www.chess.com"]

[Event "Titled Tuesday Blitz February 21 Early 2023"]
[White "Kilic, Eray"]
[Black "Migot, Tangi"]
[WhiteFideId "44517173"]
[BlackFideId "662445"]
[WhiteElo "2414"]
[BlackElo "2373"]
[Result "1-0"]
[Round "03"]
[TimeControl "180+2"]
[Date "2023.02.21"]
[WhiteClock "0:00:17"]
[BlackClock "0:00:18"]

1. d4 {[%clk 0:03:00]}  Nf6 {[%clk 0:03:00]} 2. Nc3 {[%clk 0:03:01]}  g6 {[%clk 0:03:00]} 3. e4 {[%clk 0:03:01]}  d6 {[%clk 0:03:01]} 4. f4 {[%clk 0:02:59]}  Na6 {[%clk 0:02:59]} 5. Nf3 {[%clk 0:02:59]}  c5 {[%clk 0:02:59]} 6. e5 {[%clk 0:02:58]}  dxe5 {[%clk 0:02:54]} 7. fxe5 {[%clk 0:02:59]}  Nd5 {[%clk 0:02:52]} 8. Bb5+ {[%clk 0:02:50]}  Bd7 {[%clk 0:02:52]} 9. Bxa6 {[%clk 0:02:48]}  Nxc3 {[%clk 0:02:52]} 10. bxc3 {[%clk 0:02:49]}  bxa6 {[%clk 0:02:52]} 11. O-O {[%clk 0:02:48]}  Bg7 {[%clk 0:02:38]} 12. Ng5 {[%clk 0:02:41]}  O-O {[%clk 0:02:32]} 13. Be3 {[%clk 0:02:41]}  Bb5 {[%clk 0:02:17]} 14. Rf2 {[%clk 0:02:35]}  Qd5 {[%clk 0:02:12]} 15. a4 {[%clk 0:02:23]}  Bc4 {[%clk 0:02:10]} 16. Qg4 {[%clk 0:02:21]}  h6 {[%clk 0:02:03]} 17. Ne4 {[%clk 0:02:12]}  cxd4 {[%clk 0:01:59]} 18. cxd4 {[%clk 0:02:08]}  Rab8 {[%clk 0:01:35]} 19. h4 {[%clk 0:01:59]}  h5 {[%clk 0:01:30]} 20. Qf4 {[%clk 0:01:45]}  Rb2 {[%clk 0:01:15]} 21. Ng5 {[%clk 0:01:17]}  Qc6 {[%clk 0:01:11]} 22. c3 {[%clk 0:01:11]}  Rxf2 {[%clk 0:01:09]} 23. Qxf2 {[%clk 0:01:12]}  f6 {[%clk 0:01:03]} 24. Nf3 {[%clk 0:01:12]}  Bd5 {[%clk 0:00:58]} 25. exf6 {[%clk 0:01:06]}  Rxf6 {[%clk 0:00:54]} 26. Bg5 {[%clk 0:00:47]}  Rf5 {[%clk 0:00:47]} 27. Bd2 {[%clk 0:00:33]}  Bxf3 {[%clk 0:00:42]} 28. gxf3 {[%clk 0:00:34]}  Rxf3 {[%clk 0:00:42]} 29. Qg2 {[%clk 0:00:35]}  Qf6 {[%clk 0:00:32]} 30. Re1 {[%clk 0:00:32]}  Bf8 {[%clk 0:00:20]} 31. Re5 {[%clk 0:00:22]}  Rf5 {[%clk 0:00:19]} 32. Bg5 {[%clk 0:00:20]}  Qf7 {[%clk 0:00:19]} 33. Re2 {[%clk 0:00:20]}  Qc4 {[%clk 0:00:16]} 34. Bxe7 {[%clk 0:00:17]}  Kf7 {[%clk 0:00:15]} 35. Bxf8 {[%clk 0:00:15]}  Kxf8 {[%clk 0:00:16]} 36. Qa8+ {[%clk 0:00:14]}  Kg7 {[%clk 0:00:16]} 37. Re7+ {[%clk 0:00:14]}  Rf7 {[%clk 0:00:16]} 38. Rxf7+ {[%clk 0:00:14]}  Kxf7 {[%clk 0:00:17]} 39. Qxa7+ {[%clk 0:00:14]}  Kf6 {[%clk 0:00:18]} 40. Qb6+ {[%clk 0:00:14]}  Kf5 {[%clk 0:00:19]} 41. Qc5+ {[%clk 0:00:14]}  Qxc5 {[%clk 0:00:18]} 42. dxc5 {[%clk 0:00:15]}  Ke5 {[%clk 0:00:19]} 43. c4 {[%clk 0:00:15]}  Ke6 {[%clk 0:00:18]} 44. Kf2 {[%clk 0:00:14]}  Kd7 {[%clk 0:00:18]} 45. Ke3 {[%clk 0:00:15]}  Kc6 {[%clk 0:00:19]} 46. Kd4 {[%clk 0:00:12]}  a5 {[%clk 0:00:20]} 47. Kd3 {[%clk 0:00:12]}  Kxc5 {[%clk 0:00:21]} 48. Kc3 {[%clk 0:00:12]}  g5 {[%clk 0:00:18]} 49. hxg5 {[%clk 0:00:13]}  h4 {[%clk 0:00:19]} 50. g6 {[%clk 0:00:14]}  h3 {[%clk 0:00:20]} 51. g7 {[%clk 0:00:14]}  h2 {[%clk 0:00:21]} 52. g8=Q {[%clk 0:00:15]}  h1=Q {[%clk 0:00:22]} 53. Qc8+ {[%clk 0:00:14]}  Kb6 {[%clk 0:00:21]} 54. Qb8+ {[%clk 0:00:14]}  Ka6 {[%clk 0:00:18]} 55. Qb5+ {[%clk 0:00:14]}  Ka7 {[%clk 0:00:19]} 56. Qxa5+ {[%clk 0:00:15]}  Kb7 {[%clk 0:00:19]} 57. Qd5+ {[%clk 0:00:16]}  Qxd5 {[%clk 0:00:18]} 58. cxd5 {[%clk 0:00:17]} 1-0


[Site "https://www.chess.com"]

[Event "Titled Tuesday Blitz February 21 Early 2023"]
[White "Vaibhav Jayant Raut"]
[Black "Prestia, Paris"]
[WhiteFideId "5089034"]
[BlackFideId "30925959"]
[WhiteElo "2237"]
[BlackElo "2059"]
[Result "1-0"]
[Round "03"]
[TimeControl "180+2"]
[Date "2023.02.21"]
[WhiteClock "0:00:05"]
[BlackClock "0:00:18"]

1. d4 {[%clk 0:03:00]}  b6 {[%clk 0:02:56]} 2. e4 {[%clk 0:02:58]}  Bb7 {[%clk 0:02:55]} 3. Nc3 {[%clk 0:02:58]}  e6 {[%clk 0:02:44]} 4. a3 {[%clk 0:02:58]}  Nf6 {[%clk 0:02:41]} 5. Bd3 {[%clk 0:02:56]}  c5 {[%clk 0:02:41]} 6. Nge2 {[%clk 0:02:54]}  cxd4 {[%clk 0:02:41]} 7. Nxd4 {[%clk 0:02:55]}  Nc6 {[%clk 0:02:42]} 8. Be3 {[%clk 0:02:55]}  Bc5 {[%clk 0:02:39]} 9. Nxc6 {[%clk 0:02:39]}  Bxc6 {[%clk 0:02:40]} 10. Bxc5 {[%clk 0:02:36]}  bxc5 {[%clk 0:02:41]} 11. e5 {[%clk 0:02:25]}  Nd5 {[%clk 0:02:35]} 12. Ne4 {[%clk 0:02:22]}  O-O {[%clk 0:02:35]} 13. Qd2 {[%clk 0:02:18]}  Qb6 {[%clk 0:02:30]} 14. c4 {[%clk 0:02:15]}  Ne7 {[%clk 0:02:26]} 15. O-O {[%clk 0:02:06]}  Nf5 {[%clk 0:02:25]} 16. Ng5 {[%clk 0:01:55]}  h6 {[%clk 0:02:08]} 17. Bxf5 {[%clk 0:01:45]}  exf5 {[%clk 0:02:09]} 18. Nh3 {[%clk 0:01:43]}  Rab8 {[%clk 0:02:09]} 19. Rab1 {[%clk 0:01:35]}  Be4 {[%clk 0:02:08]} 20. Ra1 {[%clk 0:01:35]}  Qxb2 {[%clk 0:02:07]} 21. Qxd7 {[%clk 0:01:34]}  Qxe5 {[%clk 0:02:07]} 22. Qxa7 {[%clk 0:01:33]}  Ra8 {[%clk 0:02:02]} 23. Qd7 {[%clk 0:01:30]}  Rfd8 {[%clk 0:02:03]} 24. Qb5 {[%clk 0:01:28]}  Rdb8 {[%clk 0:02:03]} 25. Qd7 {[%clk 0:01:28]}  Qc3 {[%clk 0:01:48]} 26. Nf4 {[%clk 0:01:11]}  Qxc4 {[%clk 0:01:43]} 27. Rac1 {[%clk 0:01:11]}  Qd4 {[%clk 0:01:38]} 28. Qc7 {[%clk 0:00:59]}  Rc8 {[%clk 0:01:37]} 29. Qb6 {[%clk 0:00:59]}  Rxa3 {[%clk 0:01:02]} 30. Ne2 {[%clk 0:00:55]}  Qe5 {[%clk 0:00:57]} 31. Ng3 {[%clk 0:00:48]}  Rc3 {[%clk 0:00:54]} 32. Rce1 {[%clk 0:00:45]}  Rc2 {[%clk 0:00:46]} 33. Qb3 {[%clk 0:00:40]}  Qc3 {[%clk 0:00:42]} 34. Qxc3 {[%clk 0:00:20]}  Rxc3 {[%clk 0:00:43]} 35. Nxe4 {[%clk 0:00:20]}  fxe4 {[%clk 0:00:44]} 36. Rxe4 {[%clk 0:00:21]}  Rc2 {[%clk 0:00:45]} 37. Rfe1 {[%clk 0:00:20]}  Kh7 {[%clk 0:00:43]} 38. g3 {[%clk 0:00:20]}  Rd8 {[%clk 0:00:42]} 39. Re7 {[%clk 0:00:18]}  Kg6 {[%clk 0:00:37]} 40. Rc7 {[%clk 0:00:18]}  Rdd2 {[%clk 0:00:34]} 41. Rf1 {[%clk 0:00:18]}  c4 {[%clk 0:00:34]} 42. Kg2 {[%clk 0:00:18]}  h5 {[%clk 0:00:34]} 43. h4 {[%clk 0:00:19]}  f6 {[%clk 0:00:34]} 44. Kf3 {[%clk 0:00:18]}  Rd3+ {[%clk 0:00:34]} 45. Kg2 {[%clk 0:00:18]}  c3 {[%clk 0:00:33]} 46. Rc4 {[%clk 0:00:17]}  Rdd2 {[%clk 0:00:29]} 47. Kf3 {[%clk 0:00:16]}  Rd3+ {[%clk 0:00:28]} 48. Kg2 {[%clk 0:00:15]}  Rd5 {[%clk 0:00:29]} 49. Re1 {[%clk 0:00:11]}  Kf5 {[%clk 0:00:28]} 50. Re3 {[%clk 0:00:08]}  Rdd2 {[%clk 0:00:20]} 51. Rf3+ {[%clk 0:00:06]}  Kg6 {[%clk 0:00:21]} 52. Rcxc3 {[%clk 0:00:03]}  Rxf2+ {[%clk 0:00:21]} 53. Rxf2 {[%clk 0:00:03]}  Rxc3 {[%clk 0:00:22]} 54. Ra2 {[%clk 0:00:04]}  Rc5 {[%clk 0:00:22]} 55. Rb2 {[%clk 0:00:04]}  Rf5 {[%clk 0:00:23]} 56. Rd2 {[%clk 0:00:04]}  Re5 {[%clk 0:00:24]} 57. Ra2 {[%clk 0:00:05]}  Kf5 {[%clk 0:00:25]} 58. Rb2 {[%clk 0:00:06]}  g6 {[%clk 0:00:25]} 59. Rf2+ {[%clk 0:00:06]}  Ke6 {[%clk 0:00:25]} 60. Rc2 {[%clk 0:00:07]}  Re4 {[%clk 0:00:26]} 61. Rc6+ {[%clk 0:00:08]}  Kf5 {[%clk 0:00:26]} 62. Rc2 {[%clk 0:00:08]}  Kg4 {[%clk 0:00:26]} 63. Rf2 {[%clk 0:00:08]}  f5 {[%clk 0:00:26]} 64. Ra2 {[%clk 0:00:09]}  Rb4 {[%clk 0:00:27]} 65. Rf2 {[%clk 0:00:09]}  g5 {[%clk 0:00:21]} 66. hxg5 {[%clk 0:00:08]}  Kxg5 {[%clk 0:00:22]} 67. Kh3 {[%clk 0:00:09]}  Rb3 {[%clk 0:00:21]} 68. Rf4 {[%clk 0:00:09]}  Re3 {[%clk 0:00:21]} 69. Ra4 {[%clk 0:00:09]}  Re4 {[%clk 0:00:21]} 70. Ra8 {[%clk 0:00:08]}  Rb4 {[%clk 0:00:20]} 71. Rg8+ {[%clk 0:00:09]}  Kf6 {[%clk 0:00:21]} 72. Rf8+ {[%clk 0:00:09]}  Kg6 {[%clk 0:00:22]} 73. Rg8+ {[%clk 0:00:09]}  Kf7 {[%clk 0:00:22]} 74. Rh8 {[%clk 0:00:09]}  Kg6 {[%clk 0:00:21]} 75. Rg8+ {[%clk 0:00:09]}  Kh6 {[%clk 0:00:22]} 76. Rf8 {[%clk 0:00:09]}  Rb5 {[%clk 0:00:20]} 77. Kh4 {[%clk 0:00:09]}  Rb4+ {[%clk 0:00:16]} 78. Kh3 {[%clk 0:00:10]}  Kg5 {[%clk 0:00:16]} 79. Rg8+ {[%clk 0:00:09]}  Kf6 {[%clk 0:00:17]} 80. Rh8 {[%clk 0:00:10]}  Rb7 {[%clk 0:00:08]} 81. Rxh5 {[%clk 0:00:08]}  Rg7 {[%clk 0:00:09]} 82. Rh6+ {[%clk 0:00:07]}  Ke5 {[%clk 0:00:10]} 83. Ra6 {[%clk 0:00:07]}  Ke4 {[%clk 0:00:10]} 84. Ra4+ {[%clk 0:00:04]}  Kf3 {[%clk 0:00:11]} 85. Rf4+ {[%clk 0:00:05]}  Ke3 {[%clk 0:00:11]} 86. Rxf5 {[%clk 0:00:05]}  Ke4 {[%clk 0:00:11]} 87. Rf1 {[%clk 0:00:06]}  Ke5 {[%clk 0:00:12]} 88. g4 {[%clk 0:00:06]}  Ke6 {[%clk 0:00:13]} 89. Kh4 {[%clk 0:00:06]}  Ke7 {[%clk 0:00:13]} 90. g5 {[%clk 0:00:06]}  Rh7+ {[%clk 0:00:13]} 91. Kg4 {[%clk 0:00:06]}  Rh2 {[%clk 0:00:13]} 92. Rf3 {[%clk 0:00:02]}  Rg2+ {[%clk 0:00:14]} 93. Kf5 {[%clk 0:00:02]}  Rh2 {[%clk 0:00:14]} 94. Kg6 {[%clk 0:00:03]}  Rh8 {[%clk 0:00:14]} 95. Kg7 {[%clk 0:00:03]}  Rh2 {[%clk 0:00:14]} 96. Re3+ {[%clk 0:00:04]}  Kd6 {[%clk 0:00:14]} 97. g6 {[%clk 0:00:04]}  Kd7 {[%clk 0:00:14]} 98. Kf8 {[%clk 0:00:03]}  Rf2+ {[%clk 0:00:15]} 99. Kg8 {[%clk 0:00:04]}  Rg2 {[%clk 0:00:15]} 100. g7 {[%clk 0:00:04]}  Rg4 {[%clk 0:00:16]} 101. Rh3 {[%clk 0:00:03]}  Ke8 {[%clk 0:00:16]} 102. Kh8 {[%clk 0:00:03]}  Kf7 {[%clk 0:00:15]} 103. Rf3+ {[%clk 0:00:04]}  Ke7 {[%clk 0:00:16]} 104. g8=Q {[%clk 0:00:04]}  Rh4+ {[%clk 0:00:17]} 105. Qh7+ {[%clk 0:00:04]}  Rxh7+ {[%clk 0:00:18]} 106. Kxh7 {[%clk 0:00:05]} 1-0


[Site "https://www.chess.com"]

[Event "Titled Tuesday Blitz February 21 Early 2023"]
[White "Aldokhin, Ivan"]
[Black "Gamage, Wanshini Vidusama"]
[WhiteFideId "24115720"]
[BlackFideId "9953752"]
[WhiteElo "2413"]
[BlackElo "1089"]
[Result "1-0"]
[Round "03"]
[TimeControl "180+2"]
[Date "2023.02.21"]
[WhiteClock "0:01:10"]
[BlackClock "0:02:13"]

1. e4 {[%clk 0:02:59]}  c5 {[%clk 0:02:59]} 2. Nf3 {[%clk 0:03:00]}  d6 {[%clk 0:02:59]} 3. d4 {[%clk 0:03:00]}  cxd4 {[%clk 0:03:00]} 4. Nxd4 {[%clk 0:03:01]}  Nf6 {[%clk 0:03:01]} 5. Nc3 {[%clk 0:03:01]}  a6 {[%clk 0:03:02]} 6. Bc4 {[%clk 0:03:02]}  e6 {[%clk 0:03:01]} 7. Bb3 {[%clk 0:03:02]}  b5 {[%clk 0:03:02]} 8. O-O {[%clk 0:02:58]}  Be7 {[%clk 0:03:01]} 9. Qf3 {[%clk 0:02:56]}  Qb6 {[%clk 0:02:56]} 10. Be3 {[%clk 0:02:49]}  Qb7 {[%clk 0:02:56]} 11. Qg3 {[%clk 0:02:33]}  b4 {[%clk 0:02:54]} 12. Na4 {[%clk 0:02:17]}  Nbd7 {[%clk 0:02:48]} 13. f3 {[%clk 0:02:02]}  O-O {[%clk 0:02:47]} 14. c4 {[%clk 0:01:49]}  bxc3 {[%clk 0:02:38]} 15. Nxc3 {[%clk 0:01:43]}  Nc5 {[%clk 0:02:37]} 16. Rad1 {[%clk 0:01:41]}  Nxb3 {[%clk 0:02:36]} 17. Nxb3 {[%clk 0:01:40]}  e5 {[%clk 0:02:26]} 18. Nd5 {[%clk 0:01:20]}  Nxd5 {[%clk 0:02:24]} 19. exd5 {[%clk 0:01:21]}  f5 {[%clk 0:02:19]} 20. f4 {[%clk 0:01:18]}  e4 {[%clk 0:02:19]} 21. Na5 {[%clk 0:01:13]}  Qxb2 {[%clk 0:02:13]} 22. Bd4 {[%clk 0:01:10]} 1-0


[Site "https://www.chess.com"]

[Event "Titled Tuesday Blitz February 21 Early 2023"]
[White "Kouskoutis, Georgios-Alexandros"]
[Black "Nihal Sarin"]
[WhiteFideId "4234049"]
[BlackFideId "25092340"]
[WhiteElo "2295"]
[BlackElo "2673"]
[Result "1-0"]
[Round "03"]
[TimeControl "180+2"]
[Date "2023.02.21"]
[WhiteClock "0:02:41"]
[BlackClock "0:02:27"]

1. c4 {[%clk 0:03:00]}  Nf6 {[%clk 0:02:44]} 2. g3 {[%clk 0:02:59]}  e6 {[%clk 0:02:37]} 3. Bg2 {[%clk 0:02:57]}  d5 {[%clk 0:02:38]} 4. Nf3 {[%clk 0:02:49]}  Be7 {[%clk 0:02:37]} 5. O-O {[%clk 0:02:46]}  O-O {[%clk 0:02:38]} 6. b3 {[%clk 0:02:46]}  b6 {[%clk 0:02:37]} 7. cxd5 {[%clk 0:02:46]}  exd5 {[%clk 0:02:38]} 8. d4 {[%clk 0:02:46]}  Bb7 {[%clk 0:02:39]} 9. Bb2 {[%clk 0:02:43]}  Nbd7 {[%clk 0:02:39]} 10. Nc3 {[%clk 0:02:41]}  Re8 {[%clk 0:02:27]} 11. e3 {[%clk 0:02:41]} 1-0


[Site "https://www.chess.com"]

[Event "Titled Tuesday Blitz February 21 Early 2023"]
[White "Pranav, V"]
[Black "Perera Alfonso, Rene Humberto"]
[WhiteFideId "25060783"]
[BlackFideId "3514722"]
[WhiteElo "2597"]
[BlackElo "2320"]
[Result "1-0"]
[Round "03"]
[TimeControl "180+2"]
[Date "2023.02.21"]
[WhiteClock "0:02:02"]
[BlackClock "0:01:24"]

1. e4 {[%clk 0:03:00]}  c5 {[%clk 0:02:02]} 2. Nf3 {[%clk 0:02:58]}  d6 {[%clk 0:02:01]} 3. d4 {[%clk 0:02:58]}  cxd4 {[%clk 0:02:02]} 4. Nxd4 {[%clk 0:02:59]}  Nf6 {[%clk 0:02:03]} 5. Nc3 {[%clk 0:02:59]}  g6 {[%clk 0:02:03]} 6. Be3 {[%clk 0:02:58]}  Bg7 {[%clk 0:02:03]} 7. f3 {[%clk 0:02:58]}  O-O {[%clk 0:02:02]} 8. Bc4 {[%clk 0:02:58]}  Nc6 {[%clk 0:02:01]} 9. Qd2 {[%clk 0:02:58]}  Bd7 {[%clk 0:01:58]} 10. O-O-O {[%clk 0:02:58]}  Rc8 {[%clk 0:01:58]} 11. Bb3 {[%clk 0:02:58]}  Nxd4 {[%clk 0:01:58]} 12. Bxd4 {[%clk 0:02:57]}  b5 {[%clk 0:01:59]} 13. Nd5 {[%clk 0:02:42]}  Nxd5 {[%clk 0:01:58]} 14. Bxg7 {[%clk 0:02:39]}  Kxg7 {[%clk 0:01:58]} 15. exd5 {[%clk 0:02:40]}  a5 {[%clk 0:01:58]} 16. c3 {[%clk 0:02:34]}  a4 {[%clk 0:01:50]} 17. Bc2 {[%clk 0:02:32]}  b4 {[%clk 0:01:49]} 18. Qd4+ {[%clk 0:02:29]}  Kg8 {[%clk 0:01:49]} 19. Qxb4 {[%clk 0:02:28]}  Rb8 {[%clk 0:01:48]} 20. Qd4 {[%clk 0:02:28]}  Qa5 {[%clk 0:01:45]} 21. Rd2 {[%clk 0:02:24]}  Rb6 {[%clk 0:01:44]} 22. Re1 {[%clk 0:02:19]}  e5 {[%clk 0:01:41]} 23. dxe6 {[%clk 0:02:16]}  Bxe6 {[%clk 0:01:41]} 24. Qxa4 {[%clk 0:02:16]}  Qg5 {[%clk 0:01:37]} 25. f4 {[%clk 0:02:15]}  Qc5 {[%clk 0:01:33]} 26. f5 {[%clk 0:02:08]}  Bxf5 {[%clk 0:01:26]} 27. Qd4 {[%clk 0:02:05]}  Bxc2 {[%clk 0:01:25]} 28. Qxc5 {[%clk 0:02:04]}  dxc5 {[%clk 0:01:25]} 29. Kxc2 {[%clk 0:02:05]}  Ra8 {[%clk 0:01:25]} 30. Kb1 {[%clk 0:02:03]}  h5 {[%clk 0:01:24]} 31. Re5 {[%clk 0:02:02]} 1-0


[Site "https://www.chess.com"]

[Event "Titled Tuesday Blitz February 21 Early 2023"]
[White "Van Foreest, Jorden"]
[Black "Taboas Rodriguez, Daniel"]
[WhiteFideId "1039784"]
[BlackFideId "2208466"]
[WhiteElo "2689"]
[BlackElo "2371"]
[Result "1-0"]
[Round "03"]
[TimeControl "180+2"]
[Date "2023.02.21"]
[WhiteClock "0:01:45"]
[BlackClock "0:00:49"]

1. d4 {[%clk 0:03:00]}  Nf6 {[%clk 0:02:59]} 2. Nf3 {[%clk 0:03:01]}  g6 {[%clk 0:02:59]} 3. c4 {[%clk 0:03:02]}  Bg7 {[%clk 0:02:59]} 4. Nc3 {[%clk 0:03:02]}  O-O {[%clk 0:02:59]} 5. e3 {[%clk 0:03:03]}  b6 {[%clk 0:02:59]} 6. g3 {[%clk 0:03:01]}  Bb7 {[%clk 0:02:58]} 7. Bg2 {[%clk 0:03:02]}  d5 {[%clk 0:02:57]} 8. Ne5 {[%clk 0:02:58]}  e6 {[%clk 0:02:55]} 9. O-O {[%clk 0:02:58]}  c5 {[%clk 0:02:56]} 10. dxc5 {[%clk 0:02:56]}  bxc5 {[%clk 0:02:57]} 11. Bd2 {[%clk 0:02:46]}  Nc6 {[%clk 0:02:56]} 12. Nd3 {[%clk 0:02:45]}  Qe7 {[%clk 0:01:48]} 13. cxd5 {[%clk 0:02:44]}  exd5 {[%clk 0:01:46]} 14. Nxd5 {[%clk 0:02:37]}  Nxd5 {[%clk 0:01:46]} 15. Bxd5 {[%clk 0:02:38]}  Rad8 {[%clk 0:01:43]} 16. e4 {[%clk 0:02:34]}  Ne5 {[%clk 0:01:38]} 17. Nxe5 {[%clk 0:02:22]}  Bxd5 {[%clk 0:01:37]} 18. exd5 {[%clk 0:02:14]}  Qxe5 {[%clk 0:01:37]} 19. Bc3 {[%clk 0:02:11]}  Qxd5 {[%clk 0:01:37]} 20. Qxd5 {[%clk 0:02:11]}  Rxd5 {[%clk 0:01:38]} 21. Rfd1 {[%clk 0:02:00]}  Rfd8 {[%clk 0:01:36]} 22. Rxd5 {[%clk 0:01:59]}  Rxd5 {[%clk 0:01:37]} 23. Rc1 {[%clk 0:01:59]}  f5 {[%clk 0:01:27]} 24. Kf1 {[%clk 0:01:55]}  Bxc3 {[%clk 0:01:22]} 25. Rxc3 {[%clk 0:01:55]}  Kf7 {[%clk 0:01:22]} 26. Ra3 {[%clk 0:01:54]}  Rd7 {[%clk 0:01:22]} 27. Ra6 {[%clk 0:01:53]}  Rc7 {[%clk 0:01:15]} 28. Ke2 {[%clk 0:01:53]}  Ke7 {[%clk 0:01:15]} 29. Kd3 {[%clk 0:01:53]}  Kd7 {[%clk 0:01:15]} 30. Kc4 {[%clk 0:01:53]}  Ke7 {[%clk 0:01:08]} 31. b3 {[%clk 0:01:53]}  f4 {[%clk 0:01:00]} 32. gxf4 {[%clk 0:01:53]}  Kf7 {[%clk 0:00:56]} 33. Kd5 {[%clk 0:01:53]}  Kg7 {[%clk 0:00:55]} 34. Kd6 {[%clk 0:01:41]}  Rf7 {[%clk 0:00:55]} 35. Kxc5 {[%clk 0:01:42]}  Rxf4 {[%clk 0:00:52]} 36. Rxa7+ {[%clk 0:01:42]}  Kh6 {[%clk 0:00:53]} 37. b4 {[%clk 0:01:43]}  Rxf2 {[%clk 0:00:52]} 38. b5 {[%clk 0:01:44]}  Rxh2 {[%clk 0:00:53]} 39. b6 {[%clk 0:01:44]}  Rb2 {[%clk 0:00:49]} 40. b7 {[%clk 0:01:44]}  g5 {[%clk 0:00:49]} 41. Ra6+ {[%clk 0:01:44]}  Kh5 {[%clk 0:00:49]} 42. Rb6 {[%clk 0:01:45]} 1-0


[Site "https://www.chess.com"]